bitfinex-derivatives/quotes_ETHF0:USTF0_20250320
["timestamp","ask_amount","ask_price","bid_price","bid_amount"]
[1742458616617,1.40538223,2007.1,2007.0,2.39779]
[1742458617121,1.40538223,2007.1,2007.0,1.4014]
[1742458617427,2.40172223,2007.1,2007.0,1.4014]
[1742458617718,2.40172223,2007.1,2007.0,2.39779]
[1742458617910,1.40538223,2007.1,2007.0,2.39779]
[1742458618310,2.40172223,2007.1,2007.0,1.4014]
[1742458618717,2.40172223,2007.1,2007.0,2.39779]
[1742458618917,1.40538223,2007.1,2007.0,2.39779]
[1742458620120,0.00748223,2007.1,2007.0,2.39779]
[1742458621028,1.00382223,2007.1,2007.0,1.4014]
[1742458621228,2.37632223,2007.1,2007.0,1.4014]
[1742458621425,0.00748223,2007.1,2007.0,3.22249]
[1742458622627,1.00382223,2007.1,2007.0,2.2261]
[1742458623226,2.31102223,2007.1,2007.0,2.2261]
[1742458627934,1.31468223,2007.1,2007.0,3.22249]
[1742458628331,1.31468223,2007.1,2007.0,2.2261]
[1742458628530,2.31102223,2007.1,2007.0,2.2261]
[1742458630036,1.31468223,2007.1,2007.0,3.22249]
[1742458630231,2.31102223,2007.1,2007.0,2.2261]
[1742458633835,1.31468223,2007.1,2007.0,3.22249]
[1742458636335,0.00748223,2007.1,2007.0,3.22249]
[1742458636635,0.8652,2007.4,2007.3,0.99624]
[1742458636830,0.99625,2007.3,2007.1,2.3808]
[1742458637133,0.99625,2007.3,2007.2,2.1627]
[1742458637335,0.99625,2007.3,2007.2,42.9627]
[1742458637736,0.99623,2007.4,2007.2,43.95899]
[1742458638040,0.99623,2007.4,2007.3,1.3658]
[1742458638339,0.99623,2007.4,2007.3,2.1491]
[1742458640126,4.24165223,2007.5,2007.3,2.1491]
[1742458640326,0.00748223,2007.5,2007.4,2.36199]
[1742458642329,3.238,2007.8,2007.7,0.99604]
[1742458643036,3.238,2007.8,2007.6,1.4694]
[1742458643236,3.238,2007.8,2007.7,0.99604]
[1742458643936,3.238,2007.8,2007.7,2.30854]
[1742458644737,3.2078,2007.9,2007.8,0.99599]
[1742458644738,6.4448,2007.9,2007.8,0.99599]
[1742458644928,6.4448,2007.9,2007.8,2.30849]
[1742458645837,6.4448,2007.9,2007.8,1.3125]
[1742458646039,6.4448,2007.9,2007.8,2.30849]
[1742458646336,3.2078,2007.9,2007.8,2.30849]
[1742458647138,0.00748223,2008.0,2007.8,2.30849]
[1742458647338,0.00748223,2008.0,2007.9,3.15484]
[1742458647739,0.00748223,2008.0,2007.9,43.95484]
[1742458649545,1.00337223,2008.0,2007.9,42.9589]
[1742458650042,0.00748223,2008.0,2007.9,43.95484]
[1742458650547,0.00748223,2008.0,2007.9,42.9589]
[1742458650843,0.00748223,2008.0,2007.9,43.95484]
[1742458651745,0.00748223,2008.0,2007.9,42.9589]
[1742458652242,7.44817223,2008.0,2007.9,40.8]
[1742458653544,8.20727223,2008.0,2007.9,40.8]
[1742458653940,8.20727223,2008.0,2007.9,42.1742]
[1742458655238,3.97438223,2008.0,2007.9,43.17014]
[1742458655435,7.21038223,2008.0,2007.9,43.17014]
[1742458655632,6.45128223,2008.0,2007.9,43.17014]
[1742458657145,3.24348223,2008.0,2007.9,43.17014]
[1742458658151,0.00748223,2008.0,2007.9,43.17014]
[1742458661052,0.99563,2008.6,2008.4,0.99565]
[1742458661346,1.2822,2008.5,2008.1,3.2078]
[1742458661651,0.99569,2008.4,2008.2,2.35785]
[1742458661950,0.99569,2008.4,2008.1,3.2078]
[1742458661951,0.99569,2008.4,2008.3,1.2891]
[1742458663554,4.20841384,2008.5,2008.3,2.28484]
[1742458663749,3.21274384,2008.5,2008.4,0.99569]
[1742458664053,0.00494384,2008.5,2008.4,3.03949]
[1742458668549,1.00058384,2008.5,2008.4,2.0438]
[1742458669155,0.00494384,2008.5,2008.4,3.03949]
[1742458670256,1.00058384,2008.5,2008.4,1.2891]
[1742458670954,0.99576,2008.3,2008.1,4.2036]
[1742458671158,0.99579,2008.2,2008.1,4.4887]
[1742458671559,0.99579,2008.3,2008.1,5.48454]
[1742458671757,4.7846,2008.4,2008.1,5.48454]
[1742458671953,0.99574,2008.3,2008.2,2.27669]
[1742458672159,0.99574,2008.3,2008.2,1.2809]
[1742458673556,0.99579,2008.2,2008.1,3.2078]
[1742458673762,0.99579,2008.2,2008.1,5.48454]
[1742458674061,5.78031,2008.4,2008.2,0.99575]
[1742458674259,5.78031,2008.4,2008.1,5.48451]
[1742458674260,0.99574,2008.3,2008.1,5.48451]
[1742458674460,0.99574,2008.3,2008.2,1.3493]
[1742458675855,4.7846,2008.4,2008.1,4.20363]
[1742458676051,4.23179,2008.3,2008.2,1.3493]
[1742458676963,5.61399,2008.3,2008.2,1.3493]
[1742458677165,4.6182,2008.3,2008.2,1.3493]
[1742458677467,5.61394,2008.3,2008.2,1.3493]
[1742458678167,4.6182,2008.3,2008.2,2.34509]
[1742458678366,5.61394,2008.3,2008.2,1.3493]
[1742458678863,4.6182,2008.3,2008.2,2.34509]
[1742458679069,0.7986,2008.4,2008.3,0.99574]
[1742458679367,5.4168,2008.4,2008.3,2.29184]
[1742458679970,3.21274384,2008.5,2008.4,0.99569]
[1742458680269,3.24094384,2008.5,2008.4,2.37249]
[1742458680470,0.00494384,2008.5,2008.4,46.38029]
[1742458681375,0.00494384,2008.5,2008.4,42.1768]
[1742458681565,0.00494384,2008.5,2008.4,43.17249]
[1742458681961,0.00494384,2008.5,2008.4,42.1768]
[1742458681962,1.00058384,2008.5,2008.4,42.1768]
[1742458682166,1.35354384,2008.5,2008.4,42.1768]
[1742458682374,5.55698384,2008.5,2008.4,42.1768]
[1742458685582,4.56134384,2008.5,2008.4,42.1768]
[1742458685881,4.56134384,2008.5,2008.4,43.17249]
[1742458686082,4.56134384,2008.5,2008.4,42.1768]
[1742458686279,5.55698384,2008.5,2008.4,42.1768]
[1742458687377,4.56134384,2008.5,2008.4,42.1768]
[1742458687578,4.56134384,2008.5,2008.4,43.17249]
[1742458687777,4.56134384,2008.5,2008.4,42.1768]
[1742458688581,5.55698384,2008.5,2008.4,42.1768]
[1742458692783,4.56134384,2008.5,2008.4,42.1768]
[1742458692984,4.56134384,2008.5,2008.4,43.17249]
[1742458693187,3.21274384,2008.5,2008.4,43.17249]
[1742458694186,3.21274384,2008.5,2008.4,42.1768]
[1742458694187,5.61138384,2008.5,2008.4,42.1768]
[1742458694591,4.61574384,2008.5,2008.4,42.1768]
[1742458694786,4.61574384,2008.5,2008.4,43.17249]
[1742458695184,4.61574384,2008.5,2008.4,42.1768]
[1742458695688,5.61138384,2008.5,2008.4,42.1768]
[1742458695884,4.61574384,2008.5,2008.4,43.17249]
[1742458696690,3.21274384,2008.5,2008.4,43.17249]
[1742458697091,6.44774384,2008.5,2008.4,43.17249]
[1742458697290,6.44774384,2008.5,2008.4,43.94109]
[1742458700293,6.44774384,2008.5,2008.4,42.9454]
[1742458700497,7.84674384,2008.5,2008.4,43.94109]
[1742458701597,6.44774384,2008.5,2008.4,43.94109]
[1742458702198,3.21274384,2008.5,2008.4,43.94109]
[1742458703500,0.00494384,2008.5,2008.4,43.94109]
[1742458705900,6.4428,2008.7,2008.6,0.99559]
[1742458706100,3.2078,2008.7,2008.6,0.99559]
[1742458707104,3.235,2008.9,2008.8,0.99549]
[1742458707404,4.23049,2008.9,2008.8,0.99548]
[1742458707903,3.235,2008.9,2008.8,1.78788]
[1742458708903,4.23045,2008.9,2008.8,1.78788]
[1742458709104,2.38014,2009.0,2008.8,2.51668]
[1742458709304,2.38014,2009.0,2008.9,1.3547]
[1742458709505,5.61514,2009.0,2008.9,1.3547]
[1742458709702,5.61514,2009.0,2008.9,2.35015]
[1742458709897,5.61514,2009.0,2008.9,1.3547]
[1742458712403,5.6151,2009.0,2008.9,1.3547]
[1742458713303,5.6151,2009.0,2008.6,0.00748223]
[1742458713304,7.10824,2009.0,2008.6,0.00748223]
[1742458713507,0.99552,2008.8,2008.7,1.3873]
[1742458713706,7.43832,2008.8,2008.7,1.3873]
[1742458714007,0.99554,2008.7,2008.6,0.00748223]
[1742458714208,2.33244,2008.7,2008.6,0.00748223]
[1742458715197,1.3369,2008.7,2008.6,1.00307223]
[1742458715403,1.3369,2008.7,2008.6,3.11707223]
[1742458715907,4.5719,2008.7,2008.6,3.11707223]
[1742458716406,3.235,2008.7,2008.6,3.11707223]
[1742458717003,4.6395,2008.7,2008.6,3.11707223]
[1742458717612,5.63504,2008.7,2008.6,2.12148223]
[1742458718812,4.6395,2008.7,2008.6,2.12148223]
[1742458719113,5.63504,2008.7,2008.6,2.12148223]
[1742458721012,4.6395,2008.7,2008.6,3.11707223]
[1742458721806,3.235,2008.7,2008.6,3.11707223]
[1742458722306,3.235,2008.7,2008.6,3.87557223]
[1742458723302,4.23054,2008.7,2008.6,3.87557223]
[1742458723521,4.23054,2008.7,2008.6,2.12148223]
[1742458723715,5.57754,2008.7,2008.6,2.12148223]
[1742458724216,4.582,2008.7,2008.6,2.12148223]
[1742458724514,4.582,2008.7,2008.6,3.11707223]
[1742458726012,3.235,2008.7,2008.6,3.11707223]
[1742458727109,4.5521,2008.7,2008.6,3.11707223]
[1742458728017,3.235,2008.7,2008.6,3.11707223]
[1742458730212,4.5249,2008.8,2008.7,0.99554]
[1742458730412,4.5249,2008.8,2008.7,2.37984]
[1742458730618,1.3171,2008.8,2008.7,2.37984]
[1742458732916,1.3171,2008.8,2008.7,3.19864]
[1742458734722,3.234,2008.9,2008.8,0.99549]
[1742458735023,4.5309,2008.9,2008.8,2.38319]
[1742458735322,3.234,2008.9,2008.8,2.38319]
[1742458736017,5.2504,2009.0,2008.9,0.99545]
[1742458736322,8.4844,2009.0,2008.9,2.38315]
[1742458737714,6.4418,2009.0,2008.9,2.38315]
[1742458738225,0.9953,2009.2,2009.1,0.99532]
[1742458738526,5.5684,2009.2,2009.1,0.99532]
[1742458739021,5.5684,2009.2,2009.1,1.3573]
[1742458739334,4.5731,2009.2,2009.1,2.35265]
[1742458739528,1.3391,2009.2,2009.1,2.35265]
[1742458739824,7.2112,2009.3,2009.2,0.9953]
[1742458740026,7.2112,2009.3,2009.2,2.3526]
[1742458740027,8.5503,2009.3,2009.2,2.3526]
[1742458740524,5.3163,2009.3,2009.2,2.3526]
[1742458740725,8.5503,2009.3,2009.2,2.3526]
[1742458742729,8.5503,2009.3,2009.2,1.3573]
[1742458743232,8.5503,2009.3,2009.2,2.3526]
[1742458744222,8.5503,2009.3,2009.2,1.3573]
[1742458744432,9.54555,2009.3,2009.2,42.1573]
[1742458745217,8.5503,2009.3,2009.2,42.1573]
[1742458745418,9.54555,2009.3,2009.2,42.1573]
[1742458745728,10.33805,2009.3,2009.2,40.8]
[1742458746624,9.3428,2009.3,2009.2,40.8]
[1742458746831,9.3428,2009.3,2009.2,41.7953]
[1742458747026,9.3428,2009.3,2009.2,43.085]
[1742458747221,3.2078,2009.6,2009.2,42.0897]
[1742458747421,6.4408,2009.6,2009.5,0.99515]
[1742458747626,3.2078,2009.6,2009.5,0.99515]
[1742458747927,6.4408,2009.6,2009.5,0.99515]
[1742458749330,4.20271,2010.0,2009.4,4.4975]
[1742458749625,3.2078,2010.0,2009.9,0.99495]
[1742458750631,3.2078,2010.0,2009.8,1.3277]
[1742458750929,3.2078,2010.0,2009.9,0.99495]
[1742458751722,3.2078,2010.0,2009.8,1.3277]
[1742458752124,3.2078,2010.0,2009.9,0.99495]
[1742458752527,3.2078,2010.3,2009.8,3.81513]
[1742458752728,3.233,2010.1,2010.0,0.9949]
[1742458752918,3.233,2010.1,2010.0,2.3258]
[1742458753332,3.233,2010.1,2010.0,43.1258]
[1742458754347,3.233,2010.1,2010.0,42.1309]
[1742458754525,4.22785,2010.1,2010.0,42.1309]
[1742458754831,3.233,2010.1,2010.0,43.1258]
[1742458755630,3.233,2010.1,2010.0,42.1309]
[1742458756026,3.233,2010.1,2010.0,43.1258]
[1742458758642,3.2078,2010.3,2010.2,0.9948]
[1742458758827,6.4398,2010.3,2010.2,0.9948]
[1742458759240,6.4398,2010.3,2010.2,2.3665]
[1742458760137,7.43455,2010.3,2010.2,1.3717]
[1742458760438,0.99485,2010.1,2010.0,40.8]
[1742458760733,6.4398,2010.3,2010.0,42.1717]
[1742458761040,7.43459,2010.3,2010.1,1.3717]
[1742458761243,0.9948,2010.2,2010.1,1.3717]
[1742458761436,7.43459,2010.3,2010.1,1.3717]
[1742458761738,0.99485,2010.1,2010.0,40.8]
[1742458761939,0.99485,2010.1,2010.0,42.1717]
[1742458762134,4.22685,2010.1,2010.0,42.1717]
[1742458762335,3.232,2010.1,2010.0,42.1717]
[1742458762638,3.232,2010.1,2010.0,43.1666]
[1742458762838,3.232,2010.1,2010.0,42.1717]
[1742458763434,3.232,2010.1,2010.0,43.1666]
[1742458763829,3.232,2010.1,2010.0,42.1717]
[1742458764341,3.9994,2010.1,2010.0,43.1666]
[1742458765139,3.9994,2010.1,2010.0,42.1717]
[1742458765438,4.99425,2010.1,2010.0,42.1717]
[1742458765744,3.9994,2010.1,2010.0,43.1666]
[1742458765942,3.9994,2010.1,2010.0,42.1717]
[1742458766343,4.99425,2010.1,2010.0,40.8]
[1742458767344,3.9994,2010.1,2010.0,41.7949]
[1742458767944,6.1265,2010.1,2010.0,41.7949]
[1742458768537,6.1265,2010.1,2010.0,40.8]
[1742458769041,5.3424,2010.1,2010.0,43.1447]
[1742458769948,5.3424,2010.1,2010.0,42.1498]
[1742458770146,6.33725,2010.1,2010.0,42.1498]
[1742458770641,6.33725,2010.1,2010.0,40.8]
[1742458778453,6.33725,2010.1,2010.0,42.1059]
[1742458778752,5.3424,2010.1,2010.0,42.1059]
[1742458778953,6.33725,2010.1,2010.0,42.1059]
[1742458784747,5.3424,2010.1,2010.0,42.1059]
[1742458784943,6.33725,2010.1,2010.0,42.1059]
[1742458785745,7.13005,2010.1,2010.0,42.1059]
[1742458788260,6.33725,2010.1,2010.0,42.1059]
[1742458788459,0.99485,2010.1,2010.0,42.1059]
[1742458788761,0.99485,2010.1,2010.0,43.10078]
[1742458788762,3.231,2010.1,2010.0,43.10078]
[1742458789655,3.231,2010.1,2010.0,42.1059]
[1742458789854,3.231,2010.1,2010.0,43.1008]
[1742458790056,3.231,2010.1,2010.0,42.1059]
[1742458790259,3.231,2010.1,2010.0,43.1008]
[1742458792362,3.231,2010.1,2010.0,42.1059]
[1742458792559,3.231,2010.1,2010.0,43.1008]
[1742458792766,3.2078,2010.2,2010.1,0.99485]
[1742458792963,6.4388,2010.2,2010.1,3.20305]
[1742458794347,3.2078,2010.2,2010.1,2.2082]
[1742458794546,3.2078,2010.2,2010.1,3.20305]
[1742458795857,3.2078,2010.2,2010.1,3.95235]
[1742458796457,4.2026,2010.2,2010.1,3.95235]
[1742458796664,4.2026,2010.2,2010.1,2.9575]
[1742458796960,3.2078,2010.2,2010.1,3.95235]
[1742458797358,6.4378,2010.2,2010.1,3.95235]
[1742458798661,3.2078,2010.2,2010.1,3.95235]
[1742458799165,3.2078,2010.2,2010.1,4.58464744]
[1742458799374,3.2078,2010.2,2010.1,3.95235]
[1742458800450,3.2078,2010.2,2010.1,4.58454717]
[1742458802556,4.2026,2010.2,2010.1,4.58454717]
[1742458803169,3.2078,2010.2,2010.1,3.95235]
[1742458804067,3.2078,2010.6,2010.5,0.99462]
[1742458804371,0.99467,2010.5,2010.4,0.99469]
[1742458804570,2.41657,2010.5,2010.4,0.99469]
[1742458804966,1.4219,2010.5,2010.4,0.99469]
[1742458805668,2.41659,2010.5,2010.3,1.3963]
[1742458806061,2.41659,2010.5,2010.4,0.7812]
[1742458806560,2.177,2010.5,2010.4,1.7759]
[1742458806767,2.177,2010.5,2010.4,3.1722]
[1742458807069,0.7551,2010.5,2010.4,3.1722]
[1742458807468,2.1094,2010.5,2010.4,3.1722]
[1742458808667,7.2076,2010.6,2010.5,0.99465]
[1742458808862,7.2076,2010.6,2010.5,2.28055]
[1742458809872,8.5715,2010.6,2010.5,2.28055]
[1742458810367,3.9448,2010.9,2010.8,0.9945]
[1742458810566,7.1748,2010.9,2010.8,0.9945]
[1742458810771,8.16928,2010.9,2010.7,0.99451]
[1742458810973,7.1748,2010.9,2010.8,0.9945]
[1742458811568,8.16927,2010.9,2010.7,0.7417]
[1742458811768,8.5247,2010.9,2010.8,2.3588]
[1742458812071,8.5247,2010.9,2010.8,1.3643]
[1742458812072,9.51916,2010.9,2010.8,1.3643]
[1742458812269,8.5247,2010.9,2010.8,2.3588]
[1742458813866,9.51916,2010.9,2010.8,1.3643]
[1742458814672,9.51919,2010.9,2010.7,1.3963]
[1742458814863,3.1154,2010.8,2010.7,1.3963]
[1742458815467,0.99455,2010.7,2010.4,6.95468]
[1742458815670,5.59909,2010.7,2010.5,1.3963]
[1742458815871,0.9946,2010.6,2010.5,1.3963]
[1742458816074,1.3755,2010.6,2010.5,1.3963]
[1742458816768,2.3701,2010.6,2010.5,1.3963]
[1742458816969,1.3755,2010.6,2010.5,1.3963]
[1742458817874,1.3755,2010.6,2010.5,2.39095]
[1742458818078,2.3701,2010.6,2010.5,1.3963]
[1742458818575,1.3755,2010.6,2010.4,6.9547]
[1742458818778,6.097,2010.5,2010.4,6.9547]
[1742458819077,6.097,2010.5,2010.3,1.79421]
[1742458819270,4.7731,2010.5,2010.3,1.79421]
[1742458819570,4.7731,2010.5,2010.3,0.99471]
[1742458819964,4.7731,2010.5,2010.4,1.2964]
[1742458820166,4.7731,2010.5,2010.4,2.2911]
[1742458820476,3.9716,2010.5,2010.4,2.2911]
[1742458820881,4.96625,2010.5,2010.4,1.2964]
[1742458821072,3.9716,2010.5,2010.4,2.2911]
[1742458821379,1.3176,2010.6,2010.5,0.99465]
[1742458821581,4.5466,2010.6,2010.5,2.29105]
[1742458822473,5.5412,2010.6,2010.5,1.2964]
[1742458823076,7.7544,2010.6,2010.2,0.771]
[1742458823277,2.41077,2010.5,2010.3,2.38182]
[1742458823481,0.99467,2010.5,2010.4,1.3871]
[1742458824575,7.43144,2010.6,2010.4,1.3871]
[1742458824988,0.99465,2010.5,2010.4,1.3871]
[1742458825484,7.43145,2010.6,2010.4,2.38179]
[1742458825678,7.43145,2010.6,2010.4,1.3871]
[1742458826283,6.4368,2010.6,2010.4,1.3871]
[1742458826478,7.43145,2010.6,2010.4,1.3871]
[1742458826679,0.99465,2010.5,2010.4,1.3871]
[1742458826876,7.43143,2010.6,2010.4,1.3871]
[1742458827477,0.99465,2010.5,2010.4,1.3871]
[1742458827685,7.43144,2010.6,2010.4,2.38179]
[1742458827880,7.43144,2010.6,2010.5,0.99465]
[1742458827881,6.4368,2010.6,2010.5,0.99465]
[1742458828082,6.4368,2010.6,2010.5,3.17315]
[1742458828284,7.4314,2010.6,2010.5,1.4141]
[1742458829978,6.4368,2010.6,2010.5,2.40875]
[1742458830185,6.4368,2010.6,2010.5,1.4141]
[1742458830484,6.4368,2010.6,2010.5,2.40875]
[1742458830676,6.4368,2010.6,2010.5,1.4141]
[1742458830881,7.4314,2010.6,2010.5,1.4141]
[1742458834988,8.1957,2010.6,2010.5,1.4141]
[1742458837099,9.5838,2010.6,2010.5,1.4141]
[1742458841399,8.5892,2010.6,2010.5,1.4141]
[1742458841599,9.5838,2010.6,2010.5,1.4141]
[1742458841801,9.5838,2010.6,2010.5,2.1745]
[1742458842303,7.8249,2010.6,2010.5,3.16915]
[1742458842505,7.8249,2010.6,2010.5,2.1745]
[1742458842708,7.8249,2010.6,2010.5,3.16915]
[1742458843501,8.8195,2010.6,2010.5,2.1745]
[1742458844200,7.8249,2010.6,2010.5,2.1745]
[1742458844705,8.8195,2010.6,2010.5,2.1745]
[1742458846306,7.8249,2010.6,2010.5,2.1745]
[1742458847001,8.8195,2010.6,2010.5,2.1745]
[1742458847398,7.8249,2010.6,2010.5,2.1745]
[1742458848309,7.8249,2010.6,2010.5,3.16915]
[1742458849903,4.5959,2010.6,2010.5,3.16915]
[1742458850107,6.4358,2010.6,2010.5,3.16915]
[1742458850600,7.7883,2010.6,2010.5,3.16915]
[1742458852711,6.4358,2010.6,2010.5,3.16915]
[1742458854220,7.4304,2010.6,2010.5,2.1745]
[1742458854906,8.1746,2010.6,2010.5,2.1745]
[1742458856425,8.1746,2010.6,2010.5,1.4141]
[1742458858813,7.18,2010.6,2010.5,2.40875]
[1742458859222,6.4358,2010.6,2010.5,2.40875]
[1742458859614,3.2078,2010.6,2010.5,2.40875]
[1742458860622,3.2078,2010.6,2010.5,3.03963283]
[1742458862829,3.2078,2010.6,2010.5,2.04498283]
[1742458863219,3.2078,2010.6,2010.5,3.03963283]
[1742458863417,3.2078,2010.6,2010.5,2.04498283]
[1742458863625,5.5286,2010.6,2010.5,1.4141]
[1742458863834,4.534,2010.6,2010.5,2.40875]
[1742458864130,5.5286,2010.6,2010.5,1.4141]
[1742458864731,4.534,2010.6,2010.5,1.4141]
[1742458865130,5.5286,2010.6,2010.5,1.4141]
[1742458865435,4.534,2010.6,2010.5,2.40875]
[1742458867622,4.534,2010.6,2010.5,1.4141]
[1742458867822,4.534,2010.6,2010.5,2.40875]
[1742458868830,7.761,2010.6,2010.5,1.4141]
[1742458869430,7.761,2010.6,2010.5,2.40875]
[1742458870428,0.775,2010.8,2010.7,0.99455]
[1742458870734,4.002,2010.8,2010.7,0.99455]
[1742458870935,5.2948,2010.8,2010.7,0.99455]
[1742458871237,5.2948,2010.8,2010.7,2.32555]
[1742458871927,6.0545,2010.8,2010.7,2.32555]
[1742458872434,7.049,2010.8,2010.7,1.331]
[1742458872634,0.99458,2010.7,2010.5,0.99462]
[1742458872834,2.38778,2010.7,2010.6,1.289]
[1742458873035,4.6202,2010.7,2010.6,1.289]
[1742458873237,4.6202,2010.7,2010.6,2.2836]
[1742458874832,0.775,2010.8,2010.7,0.99455]
[1742458875036,5.3661,2010.8,2010.7,2.34755]
[1742458876232,5.3661,2010.8,2010.7,1.353]
[1742458876437,5.3661,2010.8,2010.7,2.34755]
[1742458877135,2.1391,2010.8,2010.7,2.34755]
[1742458877337,5.3661,2010.8,2010.7,2.34755]
[1742458877537,5.3661,2010.8,2010.7,3.09665]
[1742458880634,6.3606,2010.8,2010.7,3.09665]
[1742458880836,6.3606,2010.8,2010.7,2.1021]
[1742458881036,5.3661,2010.8,2010.7,2.1021]
[1742458881534,5.3661,2010.8,2010.7,3.09665]
[1742458882443,4.5911,2010.8,2010.7,3.09665]
[1742458882835,3.227,2010.8,2010.7,3.09665]
[1742458883744,4.5436,2010.8,2010.7,3.09665]
[1742458883943,3.227,2010.8,2010.7,3.09665]
[1742458885043,4.6201,2010.8,2010.7,3.09665]
[1742458886639,0.99438,2011.1,2011.0,0.99436]
[1742458886835,4.6009,2011.2,2011.1,0.99436]
[1742458887035,7.8279,2011.2,2011.1,0.99436]
[1742458887536,8.82221,2011.2,2011.1,41.79436]
[1742458887730,8.82221,2011.2,2011.1,43.13636]
[1742458887731,7.8279,2011.2,2011.1,43.13636]
[1742458887933,8.82221,2011.2,2011.1,42.142]
[1742458888541,7.8279,2011.2,2011.1,43.13636]
[1742458889735,7.8279,2011.2,2011.1,42.142]
[1742458889938,7.8279,2011.2,2011.1,43.13636]
[1742458890147,3.2078,2011.2,2011.1,43.13636]
[1742458890341,6.4338,2011.2,2011.1,43.13636]
[1742458890841,7.8414,2011.2,2011.1,43.13636]
[1742458891445,6.4338,2011.2,2011.1,43.13636]
[1742458891642,7.8414,2011.2,2011.1,43.13636]
[1742458893341,4.6336,2011.2,2011.1,43.13636]
[1742458894041,1.4076,2011.2,2011.1,43.13636]
[1742458895238,1.4076,2011.2,2011.1,2.33636]
[1742458898243,1.4076,2011.2,2011.1,1.342]
[1742458898443,2.40191,2011.2,2011.1,1.342]
[1742458898645,5.62791,2011.2,2011.1,1.342]
[1742458898844,5.62791,2011.2,2011.1,2.33636]
[1742458898845,4.6336,2011.2,2011.1,2.33636]
[1742458899745,4.6336,2011.2,2011.1,1.342]
[1742458900051,4.6336,2011.2,2011.1,2.33636]
[1742458902050,5.62791,2011.2,2011.1,1.342]
[1742458903757,5.62791,2011.2,2011.0,46.76]
[1742458904048,1.2961,2011.1,2011.0,43.21498]
[1742458904242,1.2961,2011.1,2011.0,41.79438]
[1742458905256,1.2961,2011.1,2011.0,40.8]
[1742458905455,1.2961,2011.1,2011.0,41.79441]
[1742458906751,4.5211,2011.1,2011.0,41.79441]
[1742458906948,4.5211,2011.1,2011.0,42.53371]
[1742458907549,4.5211,2011.1,2011.0,41.79441]
[1742458907751,4.5211,2011.1,2011.0,40.8]
[1742458908050,4.5211,2011.1,2011.0,41.79441]
[1742458908450,4.5211,2011.1,2011.0,40.8]
[1742458908653,4.5211,2011.1,2011.0,41.79441]
[1742458909759,4.5211,2011.1,2011.0,40.8]
[1742458909945,4.5211,2011.1,2011.0,41.79441]
[1742458911352,3.225,2011.1,2011.0,41.79441]
[1742458911548,3.225,2011.1,2011.0,42.59501]
[1742458912559,4.6106,2011.1,2011.0,42.59501]
[1742458913356,3.225,2011.1,2011.0,42.59501]
[1742458913756,4.6106,2011.2,2011.1,0.99436]
[1742458913958,1.4953,2011.3,2011.2,0.99431]
[1742458914159,3.9716,2011.3,2011.2,0.99431]
[1742458914860,5.3266,2011.3,2011.2,0.99431]
[1742458917564,5.3266,2011.3,2011.2,1.77361]
[1742458917967,3.225,2011.3,2011.2,1.77361]
[1742458919365,4.21926,2011.3,2011.2,0.7793]
[1742458919570,0.99426,2011.3,2011.2,0.7793]
[1742458919866,6.0893,2011.4,2011.2,1.77357]
[1742458920059,5.72564,2011.4,2011.3,1.288]
[1742458920459,5.72564,2011.4,2011.3,2.28226]
[1742458920670,5.72564,2011.4,2011.3,1.288]
[1742458921568,4.7314,2011.4,2011.3,2.28226]
[1742458922673,5.72561,2011.4,2011.3,1.288]
[1742458923181,4.7314,2011.4,2011.3,1.288]
[1742458923572,5.72561,2011.4,2011.3,1.288]
[1742458923771,4.7314,2011.4,2011.3,1.288]
[1742458923977,5.72561,2011.4,2011.3,1.288]
[1742458924276,4.7314,2011.4,2011.3,1.288]
[1742458924666,4.7314,2011.4,2011.3,2.28226]
[1742458924966,5.72561,2011.4,2011.3,1.288]
[1742458927272,4.7314,2011.4,2011.3,2.28226]
[1742458927575,5.72561,2011.4,2011.3,1.288]
[1742458928376,4.7314,2011.4,2011.3,1.288]
[1742458928574,4.7314,2011.4,2011.3,2.28226]
[1742458928872,1.5064,2011.4,2011.3,2.28226]
[1742458929872,0.7589,2011.4,2011.3,2.28226]
[1742458930072,3.2078,2011.5,2011.4,0.99421]
[1742458930262,4.96192,2011.8,2011.6,0.99409]
[1742458930573,4.96192,2011.8,2011.7,1.367]
[1742458930874,8.18592,2011.8,2011.7,1.367]
[1742458932671,7.1919,2011.8,2011.7,1.367]
[1742458932875,7.1919,2011.8,2011.7,2.36106]
[1742458933269,7.1919,2011.8,2011.7,1.367]
[1742458933470,7.1919,2011.8,2011.7,2.36106]
[1742458933869,7.1919,2011.8,2011.7,1.367]
[1742458934068,7.1919,2011.8,2011.7,2.36106]
[1742458935680,8.18591,2011.8,2011.7,1.367]
[1742458937071,7.1919,2011.8,2011.7,1.367]
[1742458937278,8.598,2011.8,2011.7,1.367]
[1742458937781,9.59201,2011.8,2011.7,1.367]
[1742458938276,8.598,2011.8,2011.7,1.367]
[1742458938673,9.59201,2011.8,2011.7,1.367]
[1742458940084,0.99411,2011.7,2011.5,1.78414]
[1742458940275,5.4126,2011.6,2011.5,0.79]
[1742458940882,5.4126,2011.6,2011.3,10.16202]
[1742458941077,1.75957,2011.5,2011.3,10.16202]
[1742458941377,0.7654,2011.5,2011.4,0.99421]
[1742458941581,0.7654,2011.5,2011.4,2.40811]
[1742458942476,3.9948,2011.6,2011.5,0.99416]
[1742458942780,3.9948,2011.6,2011.5,2.35316]
[1742458943880,3.223,2011.6,2011.5,2.35316]